fUSD/lending_fUSD_20250904
["ID","MTS","AMOUNT","RATE_DAILY","PERIOD"]
[383561271,1756990303291,-898.29,0.00024109,2]
[383561272,1756990303301,-1689.73,0.00024109,2]
[383561273,1756990303310,-454.51,0.00024109,2]
[383561274,1756990303320,-400.0,0.00024109,2]
[383561275,1756990303329,-294.1285446,0.00024109,2]
[383561276,1756990303339,-402.85,0.00024109,2]
[383561277,1756990303347,-449.75,0.00024109,2]
[383561278,1756990303357,-400.0,0.00024109,2]
[383561279,1756990303366,-435.81,0.00024109,2]
[383561280,1756990303375,-400.0,0.00024109,2]
[383561281,1756990303384,-579.58,0.00024109,2]
[383561282,1756990303393,-400.0,0.00024109,2]
[383561283,1756990303403,-400.0,0.00024109,2]
[383561284,1756990303412,-400.0,0.00024109,2]
[383561285,1756990303421,-996.93,0.00024109,2]
[383561286,1756990303430,-1061.82,0.00024109,2]
[383561287,1756990303440,-207.60077966,0.00024109,2]
[383561288,1756990303449,-321.44029091,0.00024109,2]
[383561289,1756990303458,-400.0,0.00024109,2]
[383561290,1756990303468,-608.48,0.00024109,2]
[383561291,1756990303478,-1216.81,0.00024109,2]
[383561292,1756990303499,-2520.02,0.00024109,2]
[383561293,1756990303511,-400.0,0.00024109,2]
[383561294,1756990303519,-1569.91,0.00024109,2]
[383561295,1756990303527,-400.0,0.00024109,2]
[383561296,1756990303535,-1782.09,0.00024109,2]
[383561297,1756990303542,-400.0,0.00024109,2]
[383561298,1756990303549,-400.0,0.00024109,2]
[383561299,1756990303556,-400.0,0.00024109,2]
[383561300,1756990303564,-1565.66,0.00024109,2]
[383561301,1756990303580,-967.5,0.00024109,2]
[383561302,1756990303589,-1736.13,0.00024109,2]
[383561303,1756990303597,-400.0,0.00024109,2]
[383561304,1756990303604,-841.07,0.00024109,2]
[383561305,1756990303613,-400.0,0.00024109,2]
[383561306,1756990303620,-341.43553525,0.00024109,2]
[383561307,1756990303627,-400.0,0.00024109,2]
[383561308,1756990303637,-400.0,0.00024109,2]
[383561309,1756990303646,-400.0,0.00024109,2]
[383561310,1756990303656,-941.19,0.00024109,2]
[383561311,1756990303666,-400.0,0.00024109,2]
[383561312,1756990303675,-400.0,0.00024109,2]
[383561313,1756990303685,-1999.99,0.00024109,2]
[383561314,1756990303695,-656.44,0.00024109,2]
[383561315,1756990303704,-355.47995756,0.00024109,2]
[383561316,1756990303714,-400.0,0.00024109,2]
[383561317,1756990303723,-400.0,0.00024109,2]
[383561318,1756990303733,-400.0,0.00024109,2]
[383561319,1756990303742,-400.0,0.00024109,2]
[383561320,1756990303754,-1565.3,0.00024109,2]
[383561321,1756990303763,-1135.36,0.00024109,2]
[383561322,1756990303773,-400.0,0.00024109,2]
[383561323,1756990303783,-455.15,0.00024109,2]
[383561324,1756990303792,-3100.45,0.00024109,2]
[383561325,1756990303802,-708.51,0.00024109,2]
[383561326,1756990303811,-400.0,0.00024109,2]
[383561327,1756990303821,-945.65,0.00024109,2]
[383561328,1756990303830,-459.56,0.00024109,2]
[383561329,1756990303840,-742.75,0.00024109,2]
[383561330,1756990303849,-400.0,0.00024109,2]
[383561331,1756990303859,-400.0,0.00024109,2]
[383561332,1756990303868,-550.96525828,0.0002411,2]
[383561333,1756990303878,-406.70641324,0.0002411,4]
[383561334,1756990303887,-375.94124126,0.0002411,2]
[383561335,1756990303897,-7123.31744953,0.0002411,2]
[383561336,1756990303906,-2500.0,0.00024164,2]
[383561337,1756990303916,-150.99,0.00024174,2]
[383561338,1756990303928,-400.0,0.00024191,2]
[383561339,1756990303937,-400.0,0.00024191,2]
[383561340,1756990303947,-400.0,0.00024191,2]
[383561341,1756990303956,-400.0,0.00024191,2]
[383561342,1756990303966,-400.0,0.00024191,2]
[383561343,1756990303975,-6679.88,0.00024191,2]
[383561344,1756990303984,-956.54,0.00024191,2]
[383561345,1756990303993,-484.69,0.00024191,2]
[383561346,1756990304003,-471.21,0.00024191,2]
[383561347,1756990304013,-848.28,0.00024191,2]
[383561348,1756990304022,-400.0,0.00024191,2]
[383561349,1756990304031,-876.27,0.00024191,2]
[383561350,1756990304178,-137242.43,0.000242,7]
[383561351,1756990304187,-413.58643953,0.0002421,2]
[383561352,1756990304197,-3623.07031805,0.0002421,2]
[383561353,1756990304206,-11903.58085434,0.00024253,2]
[383561354,1756990304215,-8106.4665456,0.00024253,2]
[383561355,1756990304224,-600.0,0.00024302,2]
[383561356,1756990304234,-3382.0,0.0002431,2]
[383561357,1756990304243,-924.0,0.0002431,2]
[383561358,1756990304252,-2035.0,0.0002431,2]
[383561359,1756990304261,-1258.0,0.0002431,2]
[383561360,1756990304271,-1577.0,0.0002431,2]
[383561361,1756990304280,-1300.0,0.0002431,2]
[383561362,1756990304289,-567.0,0.0002431,2]
[383561363,1756990304299,-600.0,0.0002431,2]
[383561364,1756990304308,-811.0,0.0002431,2]
[383561365,1756990304318,-2241.0,0.0002431,2]
[383561366,1756990304327,-4163.0,0.0002431,2]
[383561367,1756990304337,-21149.0,0.0002431,2]
[383561368,1756990304346,-724.0,0.0002431,2]
[383561369,1756990304355,-6163.0,0.0002431,2]
[383561370,1756990304365,-231.76,0.00024336,2]
[383561371,1756990304374,-2500.0,0.00024364,2]
[383561372,1756990304384,-2500.0,0.00024364,2]
[383561373,1756990304393,-298.26089446,0.00024368,2]
[383561374,1756990304402,-150.0,0.00024382,2]
[383561375,1756990304411,-422.37,0.00024383,2]
[383561376,1756990304420,-400.0,0.00024383,2]
[383561377,1756990304430,-400.0,0.00024383,2]
[383561378,1756990304439,-400.0,0.00024383,2]
[383561379,1756990304448,-400.0,0.00024383,2]
[383561380,1756990304457,-284.65,0.00024383,2]
[383561381,1756990304467,-492.66,0.00024383,2]
[383561382,1756990304477,-158.78362201,0.00024383,2]
[383561383,1756990304486,-400.0,0.00024383,2]
[383561384,1756990304496,-400.0,0.00024383,2]
[383561385,1756990304505,-400.0,0.00024383,2]
[383561386,1756990304515,-400.0,0.00024383,2]
[383561387,1756990304524,-400.0,0.00024383,2]
[383561388,1756990304534,-400.0,0.00024383,2]
[383561389,1756990304543,-400.0,0.00024383,2]
[383561390,1756990304552,-159.517876,0.00024383,2]
[383561391,1756990304561,-204.850015,0.00024383,2]
[383561392,1756990304571,-237.602869,0.00024383,2]
[383561393,1756990304580,-400.0,0.00024383,2]
[383561394,1756990304590,-400.0,0.00024383,2]
[383561395,1756990304599,-400.0,0.00024383,2]
[383561396,1756990304608,-412.66,0.00024383,2]
[383561397,1756990304617,-761.63,0.00024383,2]
[383561398,1756990304627,-400.0,0.00024383,2]
[383561399,1756990304637,-291.34469065,0.00024383,2]
[383561400,1756990304646,-1219.37,0.00024383,2]
[383561401,1756990304655,-400.0,0.00024383,2]
[383561402,1756990304665,-661.99,0.00024383,2]
[383561403,1756990304675,-575.08,0.00024383,2]
[383561404,1756990304685,-400.0,0.00024383,2]
[383561405,1756990304695,-400.0,0.00024383,2]
[383561406,1756990304704,-400.0,0.00024383,2]
[383561407,1756990304714,-517.85885943,0.00024383,2]
[383561408,1756990304723,-198.84371216,0.00024383,2]
[383561409,1756990304732,-400.0,0.00024383,2]
[383561410,1756990304742,-400.0,0.00024383,2]
[383561411,1756990304751,-308.67326407,0.00024383,2]
[383561412,1756990304761,-411.91,0.00024383,2]
[383561413,1756990304770,-400.0,0.00024383,2]
[383561414,1756990304779,-400.0,0.00024383,2]
[383561415,1756990304791,-400.0,0.00024383,2]
[383561416,1756990304800,-400.0,0.00024383,2]
[383561417,1756990304809,-400.0,0.00024383,2]
[383561418,1756990304819,-400.0,0.00024383,2]
[383561419,1756990304828,-400.0,0.00024383,2]
[383561420,1756990304838,-400.0,0.00024383,2]
[383561421,1756990304848,-400.0,0.00024383,2]
[383561422,1756990304857,-400.0,0.00024383,2]
[383561423,1756990304866,-400.0,0.00024383,2]
[383561424,1756990304875,-400.0,0.00024383,2]
[383561425,1756990304886,-524.36390713,0.00024383,2]
[383561426,1756990304895,-400.0,0.00024383,2]
[383561427,1756990304904,-329.80056543,0.00024383,2]
[383561428,1756990304914,-400.0,0.00024383,2]
[383561429,1756990304926,-500.0,0.00024383,2]
[383561430,1756990304938,-400.0,0.00024383,2]
[383561431,1756990304947,-400.0,0.00024383,2]
[383561432,1756990304956,-433.75138701,0.00024383,2]
[383561433,1756990304966,-400.0,0.00024383,2]
[383561434,1756990304977,-402.8,0.00024383,2]
[383561435,1756990304986,-400.0,0.00024383,2]
[383561436,1756990304995,-184.31458476,0.00024383,2]
[383561437,1756990305006,-277.28177936,0.00024383,2]
[383561438,1756990305015,-476.28,0.00024383,2]
[383561439,1756990305025,-414.4,0.00024383,2]
[383561440,1756990305034,-400.0,0.00024383,2]
[383561441,1756990305044,-370.75544981,0.00024383,2]
[383561442,1756990305053,-400.0,0.00024383,2]
[383561443,1756990305062,-400.0,0.00024383,2]
[383561444,1756990305072,-400.0,0.00024383,2]
[383561445,1756990305081,-400.0,0.00024383,2]
[383561446,1756990305091,-490.66982895,0.00024383,2]
[383561447,1756990305100,-400.0,0.00024383,2]
[383561448,1756990305110,-400.0,0.00024383,2]
[383561449,1756990305125,-400.0,0.00024383,2]
[383561450,1756990305142,-400.0,0.00024383,2]
[383561451,1756990305160,-400.0,0.00024383,2]
[383561452,1756990305179,-450.17827692,0.00024383,2]
[383561453,1756990305195,-400.0,0.00024383,2]
[383561454,1756990305212,-157.00109092,0.00024383,2]
[383561455,1756990305230,-400.0,0.00024383,2]
[383561456,1756990305247,-400.0,0.00024383,2]
[383561457,1756990305267,-400.0,0.00024383,2]
[383561458,1756990305282,-400.0,0.00024383,2]
[383561459,1756990305301,-463.59,0.00024383,2]
[383561460,1756990305317,-400.0,0.00024383,2]
[383561461,1756990305331,-400.0,0.00024383,2]
[383561462,1756990305348,-400.0,0.00024383,2]
[383561463,1756990305364,-423.94,0.00024383,2]
[383561464,1756990305378,-495.23,0.00024383,2]
[383561465,1756990305395,-565.94,0.00024383,2]
[383561466,1756990305410,-400.0,0.00024383,2]
[383561467,1756990305426,-400.0,0.00024383,2]
[383561468,1756990305441,-400.0,0.00024383,2]
[383561469,1756990305456,-400.0,0.00024383,2]
[383561470,1756990305471,-400.0,0.00024383,2]
[383561471,1756990305486,-466.1,0.00024383,2]
[383561472,1756990305502,-400.0,0.00024383,2]
[383561473,1756990305517,-400.0,0.00024383,2]
[383561474,1756990305532,-456.03,0.00024383,2]
[383561475,1756990305548,-400.0,0.00024383,2]
[383561476,1756990305564,-400.0,0.00024383,2]
[383561477,1756990305581,-400.0,0.00024383,2]
[383561478,1756990305597,-400.0,0.00024383,2]
[383561479,1756990305613,-400.0,0.00024383,2]
[383561480,1756990305629,-400.0,0.00024383,2]
[383561481,1756990305644,-400.0,0.00024383,2]
[383561482,1756990305660,-945.14,0.00024383,2]
[383561483,1756990305675,-400.0,0.00024383,2]
[383561484,1756990305692,-400.0,0.00024383,2]
[383561485,1756990305707,-400.0,0.00024383,2]
[383561486,1756990305723,-400.0,0.00024383,2]
[383561487,1756990305739,-400.0,0.00024383,2]
[383561488,1756990305755,-953.11,0.00024383,2]
[383561489,1756990305770,-400.0,0.00024383,2]
[383561490,1756990305786,-400.0,0.00024383,2]
[383561491,1756990305801,-400.0,0.00024383,2]
[383561492,1756990305816,-821.03,0.00024383,2]
[383561493,1756990305833,-400.0,0.00024383,2]
[383561494,1756990305848,-1693.2,0.00024383,2]
[383561495,1756990305863,-428.79649652,0.00024383,2]
[383561496,1756990305879,-1079.3,0.00024383,2]
[383561497,1756990305894,-400.0,0.00024383,2]
[383561498,1756990305909,-202.2099774,0.00024383,2]
[383561499,1756990305925,-624.18,0.00024383,2]
[383561500,1756990305940,-400.0,0.00024383,2]
[383561501,1756990305955,-400.0,0.00024383,2]
[383561502,1756990305970,-2782.05,0.00024383,2]
[383561503,1756990305985,-400.0,0.00024383,2]
[383561504,1756990306000,-725.37,0.00024383,2]
[383561505,1756990306015,-421.94,0.00024383,2]
[383561506,1756990306030,-685.21,0.00024383,2]
[383561507,1756990306044,-400.0,0.00024383,2]
[383561508,1756990306059,-400.0,0.00024383,2]
[383561509,1756990306074,-400.0,0.00024383,2]
[383561510,1756990306089,-1587.17,0.00024383,2]
[383561511,1756990306104,-931.71,0.00024383,2]
[383561512,1756990306119,-400.0,0.00024383,2]
[383561513,1756990306134,-400.0,0.00024383,2]
[383561514,1756990306149,-2135.57,0.00024383,2]
[383561515,1756990306165,-1227.09,0.00024383,2]
[383561516,1756990306180,-625.05,0.00024383,2]
[383561517,1756990306194,-474.56,0.00024383,2]
[383561518,1756990306209,-400.0,0.00024383,2]
[383561519,1756990306223,-749.93,0.00024383,2]
[383561520,1756990306238,-544.23966302,0.00024383,2]
[383561521,1756990306253,-400.0,0.00024383,2]
[383561522,1756990306267,-400.0,0.00024383,2]
[383561523,1756990306282,-508.97,0.00024383,2]
[383561524,1756990306296,-638.66,0.00024383,2]
[383561525,1756990306312,-400.0,0.00024383,2]
[383561526,1756990306326,-268.83325833,0.00024383,2]
[383561527,1756990306344,-400.0,0.00024383,2]
[383561528,1756990306358,-400.0,0.00024383,2]
[383561529,1756990306372,-400.0,0.00024383,2]
[383561530,1756990306388,-400.0,0.00024383,2]
[383561531,1756990306403,-3593.96,0.00024383,2]
[383561532,1756990306422,-400.0,0.00024383,2]
[383561533,1756990306437,-1070.95,0.00024383,2]
[383561534,1756990306453,-400.0,0.00024383,2]
[383561535,1756990306482,-326.56902778,0.00024383,2]
[383561536,1756990306507,-400.0,0.00024383,2]
[383561537,1756990306528,-400.0,0.00024383,2]
[383561538,1756990306549,-3019.97,0.00024383,2]
[383561539,1756990306568,-400.0,0.00024383,2]
[383561540,1756990306585,-2175.07,0.00024383,2]
[383561541,1756990306604,-400.0,0.00024383,2]
[383561542,1756990306621,-400.0,0.00024383,2]
[383561543,1756990306639,-400.0,0.00024383,2]
[383561544,1756990306656,-400.0,0.00024383,2]
[383561545,1756990306673,-400.0,0.00024383,2]
[383561546,1756990306692,-400.0,0.00024383,2]
[383561547,1756990306707,-480.01205334,0.00024383,2]
[383561548,1756990306724,-400.0,0.00024383,2]
[383561549,1756990306740,-2082.36,0.00024383,2]
[383561550,1756990306755,-400.0,0.00024383,2]
[383561551,1756990306977,-155.34104902,0.00024383,2]
[383561552,1756990306987,-400.0,0.00024383,2]
[383561553,1756990306997,-400.0,0.00024383,2]
[383561554,1756990307007,-970.38,0.00024383,2]
[383561555,1756990307016,-1127.96,0.00024383,2]
[383561556,1756990307026,-2243.08,0.00024383,2]
[383561557,1756990307035,-400.0,0.00024383,2]
[383561558,1756990307045,-1735.62,0.00024383,2]
[383561559,1756990307054,-1045.07,0.00024383,2]
[383561560,1756990307063,-400.0,0.00024383,2]
[383561561,1756990307072,-731.72,0.00024383,2]
[383561562,1756990307083,-400.0,0.00024383,2]
[383561563,1756990307092,-400.0,0.00024383,2]
[383561564,1756990307103,-998.96,0.00024383,2]
[383561565,1756990307114,-400.0,0.00024383,2]
[383561566,1756990307123,-400.0,0.00024383,2]
[383561567,1756990307133,-231.52648004,0.00024383,2]
[383561568,1756990307142,-709.73,0.00024383,2]
[383561569,1756990307151,-400.0,0.00024383,2]
[383561570,1756990307161,-2831.28,0.00024383,2]
[383561571,1756990307171,-3039.71,0.00024383,2]
[383561572,1756990307180,-898.29,0.00024383,2]
[383561573,1756990307190,-1689.73,0.00024383,2]
[383561574,1756990307200,-454.51,0.00024383,2]
[383561575,1756990307210,-400.0,0.00024383,2]
[383561576,1756990307220,-402.85,0.00024383,2]
[383561577,1756990307230,-449.75,0.00024383,2]
[383561578,1756990307239,-451.92,0.00024383,2]
[383561579,1756990307249,-409.55954474,0.00024383,2]
[383561580,1756990307258,-435.81,0.00024383,2]
[383561581,1756990307268,-579.58,0.00024383,2]
[383561582,1756990307278,-400.0,0.00024383,2]
[383561583,1756990307287,-400.0,0.00024383,2]
[383561584,1756990307296,-400.0,0.00024383,2]
[383561585,1756990307306,-996.93,0.00024383,2]
[383561586,1756990307316,-1061.82,0.00024383,2]
[383561587,1756990307326,-400.0,0.00024383,2]
[383561588,1756990307336,-608.48,0.00024383,2]
[383561589,1756990307345,-1216.81,0.00024383,2]
[383561590,1756990307355,-2520.02,0.00024383,2]
[383561591,1756990307364,-400.0,0.00024383,2]
[383561592,1756990307374,-1569.91,0.00024383,2]
[383561593,1756990307383,-400.0,0.00024383,2]
[383561594,1756990307393,-1782.09,0.00024383,2]
[383561595,1756990307403,-400.0,0.00024383,2]
[383561596,1756990307413,-332.94438928,0.00024383,2]
[383561597,1756990307423,-400.0,0.00024383,2]
[383561598,1756990307433,-1565.66,0.00024383,2]
[383561599,1756990307442,-967.5,0.00024383,2]
[383561600,1756990307452,-1736.13,0.00024383,2]
[383561601,1756990307461,-400.0,0.00024383,2]
[383561602,1756990307471,-841.07,0.00024383,2]
[383561603,1756990307481,-400.0,0.00024383,2]
[383561604,1756990307490,-400.0,0.00024383,2]
[383561605,1756990307500,-400.0,0.00024383,2]
[383561606,1756990307509,-400.0,0.00024383,2]
[383561607,1756990307519,-941.19,0.00024383,2]
[383561608,1756990307529,-166.58276062,0.00024383,2]
[383561609,1756990307539,-400.0,0.00024383,2]
[383561610,1756990307549,-1999.99,0.00024383,2]
[383561611,1756990307559,-656.44,0.00024383,2]
[383561612,1756990307568,-400.0,0.00024383,2]
[383561613,1756990307578,-400.0,0.00024383,2]
[383561614,1756990307588,-400.0,0.00024383,2]
[383561615,1756990307598,-400.0,0.00024383,2]
[383561616,1756990307608,-1565.3,0.00024383,2]
[383561617,1756990307617,-1135.36,0.00024383,2]
[383561618,1756990307627,-400.0,0.00024383,2]
[383561619,1756990307636,-455.15,0.00024383,2]
[383561620,1756990307646,-3100.45,0.00024383,2]
[383561621,1756990307656,-708.51,0.00024383,2]
[383561622,1756990307665,-400.0,0.00024383,2]
[383561623,1756990307675,-945.65,0.00024383,2]
[383561624,1756990307685,-459.56,0.00024383,2]
[383561625,1756990307695,-742.75,0.00024383,2]
[383561626,1756990307705,-400.0,0.00024383,2]
[383561627,1756990307715,-400.0,0.00024383,2]
[383561628,1756990307724,-169.22,0.0002439,2]
[383561629,1756990307733,-2351.0,0.00024446,2]
[383561630,1756990307743,-400.0,0.00024465,2]
[383561631,1756990307753,-400.0,0.00024465,2]
[383561632,1756990307762,-400.0,0.00024465,2]
[383561633,1756990307772,-400.0,0.00024465,2]
[383561634,1756990307782,-400.0,0.00024465,2]
[383561635,1756990307791,-6679.88,0.00024465,2]
[383561636,1756990307800,-956.54,0.00024465,2]
[383561637,1756990307810,-484.69,0.00024465,2]
[383561638,1756990307819,-471.21,0.00024465,2]
[383561639,1756990307829,-848.28,0.00024465,2]
[383561640,1756990307838,-400.0,0.00024465,2]
[383561641,1756990307847,-876.27,0.00024465,2]
[383561642,1756990307857,-164.53,0.00024491,2]
[383561643,1756990307866,-150.0,0.00024499,2]
[383561644,1756990307875,-200.0,0.0002451,7]
[383561645,1756990307886,-500.0,0.00024558,2]
[383561646,1756990307895,-500.0,0.00024558,2]
[383561647,1756990307904,-500.0,0.00024558,2]
[383561648,1756990307914,-500.0,0.00024558,2]
[383561649,1756990307926,-500.0,0.00024558,2]
[383561650,1756990307936,-500.0,0.00024558,2]
[383561651,1756990307946,-500.0,0.00024558,2]
[383561652,1756990307955,-500.0,0.00024558,2]
[383561653,1756990307965,-500.0,0.00024558,2]
[383561654,1756990307974,-500.0,0.00024558,2]
[383561655,1756990307984,-500.0,0.00024558,2]
[383561656,1756990307993,-500.0,0.00024558,2]
[383561657,1756990308002,-500.0,0.00024558,2]
[383561658,1756990308011,-500.0,0.00024558,2]
[383561659,1756990308022,-500.0,0.00024558,2]
[383561660,1756990308031,-500.0,0.00024558,2]
[383561661,1756990308041,-500.0,0.00024558,2]
[383561662,1756990308050,-500.0,0.00024558,2]
[383561663,1756990308060,-500.0,0.00024558,2]
[383561664,1756990308069,-500.0,0.00024558,2]
[383561665,1756990308079,-500.0,0.00024558,2]
[383561666,1756990308088,-500.0,0.00024558,2]
[383561667,1756990308098,-500.0,0.00024558,2]
[383561668,1756990308107,-500.0,0.00024558,2]
[383561669,1756990308117,-500.0,0.00024558,2]
[383561670,1756990308127,-500.0,0.00024558,2]
[383561671,1756990308136,-500.0,0.00024558,2]
[383561672,1756990308146,-500.0,0.00024558,2]
[383561673,1756990308155,-500.0,0.00024558,2]
[383561674,1756990308164,-500.0,0.00024558,2]
[383561675,1756990308174,-500.0,0.00024558,2]
[383561676,1756990308184,-500.0,0.00024558,2]
[383561677,1756990308193,-500.0,0.00024558,2]
[383561678,1756990308203,-500.0,0.00024558,2]
[383561679,1756990308212,-500.0,0.00024558,2]
[383561680,1756990308222,-500.0,0.00024558,2]
[383561681,1756990308231,-500.0,0.00024558,2]
[383561682,1756990308241,-500.0,0.00024558,2]
[383561683,1756990308251,-500.0,0.00024558,2]
[383561684,1756990308261,-500.0,0.00024558,2]
[383561685,1756990308270,-500.0,0.00024558,2]
[383561686,1756990308280,-500.0,0.00024558,2]
[383561687,1756990308289,-500.0,0.00024558,2]
[383561688,1756990308299,-500.0,0.00024558,2]
[383561689,1756990308309,-500.0,0.00024558,2]
[383561690,1756990308318,-500.0,0.00024558,2]
[383561691,1756990308327,-500.0,0.00024558,2]
[383561692,1756990308336,-500.0,0.00024558,2]
[383561693,1756990308345,-500.0,0.00024558,2]
[383561694,1756990308354,-500.0,0.00024558,2]
[383561695,1756990308363,-500.0,0.00024558,2]
[383561696,1756990308372,-500.0,0.00024558,2]
[383561697,1756990308381,-500.0,0.00024558,2]
[383561698,1756990308390,-500.0,0.00024558,2]
[383561699,1756990308399,-500.0,0.00024558,2]
[383561700,1756990308408,-500.0,0.00024558,2]
[383561701,1756990308418,-500.0,0.00024558,2]
[383561702,1756990308427,-500.0,0.00024558,2]
[383561703,1756990308436,-500.0,0.00024558,2]
[383561704,1756990308445,-500.0,0.00024558,2]
[383561705,1756990308455,-500.0,0.00024558,2]
[383561706,1756990308465,-500.0,0.00024558,2]
[383561707,1756990308475,-613.0,0.00024558,2]
[383561708,1756990308484,-500.0,0.00024558,2]
[383561709,1756990308494,-500.0,0.00024558,2]
[383561710,1756990308503,-500.0,0.00024558,2]
[383561711,1756990308513,-500.0,0.00024558,2]
[383561712,1756990308522,-500.0,0.00024558,2]
[383561713,1756990308532,-500.0,0.00024558,2]
[383561714,1756990308541,-500.0,0.00024558,2]
[383561715,1756990308551,-500.0,0.00024558,2]
[383561716,1756990308560,-500.0,0.00024558,2]
[383561717,1756990308570,-500.0,0.00024558,2]
[383561718,1756990308579,-500.0,0.00024558,2]
[383561719,1756990308588,-500.0,0.00024558,2]
[383561720,1756990308598,-500.0,0.00024558,2]
[383561721,1756990308607,-500.0,0.00024558,2]
[383561722,1756990308617,-500.0,0.00024558,2]
[383561723,1756990308627,-500.0,0.00024558,2]
[383561724,1756990308637,-500.0,0.00024558,2]
[383561725,1756990308647,-500.0,0.00024558,2]
[383561726,1756990308656,-500.0,0.00024558,2]
[383561727,1756990308666,-500.0,0.00024558,2]
[383561728,1756990308675,-500.0,0.00024558,2]
[383561729,1756990308685,-500.0,0.00024558,2]
[383561730,1756990308695,-500.0,0.00024558,2]
[383561731,1756990308704,-500.0,0.00024558,2]
[383561732,1756990308714,-500.0,0.00024558,2]
[383561733,1756990308723,-500.0,0.00024558,2]
[383561734,1756990308733,-500.0,0.00024558,2]
[383561735,1756990308743,-500.0,0.00024558,2]
[383561736,1756990308752,-500.0,0.00024558,2]
[383561737,1756990308762,-500.0,0.00024558,2]
[383561738,1756990308771,-500.0,0.00024558,2]
[383561739,1756990308781,-500.0,0.00024558,2]
[383561740,1756990308790,-500.0,0.00024558,2]
[383561741,1756990308799,-500.0,0.00024558,2]
[383561742,1756990308809,-500.0,0.00024558,2]
[383561743,1756990308819,-500.0,0.00024558,2]
[383561744,1756990308828,-500.0,0.00024558,2]
[383561745,1756990308837,-500.0,0.00024558,2]
[383561746,1756990308847,-500.0,0.00024558,2]
[383561747,1756990308856,-500.0,0.00024558,2]
[383561748,1756990308865,-500.0,0.00024558,2]
[383561749,1756990308874,-500.0,0.00024558,2]
[383561750,1756990308884,-500.0,0.00024558,2]
[383561751,1756990308893,-500.0,0.00024558,2]
[383561752,1756990308903,-500.0,0.00024558,2]
[383561753,1756990308912,-500.0,0.00024558,2]
[383561754,1756990308922,-500.0,0.00024558,2]
[383561755,1756990308934,-500.0,0.00024558,2]
[383561756,1756990308944,-500.0,0.00024558,2]
[383561757,1756990308953,-500.0,0.00024558,2]
[383561758,1756990308963,-500.0,0.00024558,2]
[383561759,1756990308973,-500.0,0.00024558,2]
[383561760,1756990308983,-500.0,0.00024558,2]
[383561761,1756990308992,-745.0,0.00024558,2]
[383561762,1756990309002,-500.0,0.00024558,2]
[383561763,1756990309011,-500.0,0.00024558,2]
[383561764,1756990309021,-500.0,0.00024558,2]
[383561765,1756990309031,-500.0,0.00024558,2]
[383561766,1756990309041,-500.0,0.00024558,2]
[383561767,1756990309050,-500.0,0.00024558,2]
[383561768,1756990309059,-500.0,0.00024558,2]
[383561769,1756990309068,-500.0,0.00024558,2]
[383561770,1756990309078,-500.0,0.00024558,2]